lending/lending_fUSD_20250719
["ID","MTS","AMOUNT","RATE_DAILY","PERIOD"]
[373349684,1752961838342,-23001.755,0.00018872,2]
[373349685,1752961838353,-350.70929504,0.00018872,2]
[373349686,1752961838374,-1658.57091694,0.00018872,2]
[373349687,1752961838385,-3711.32497671,0.00018872,2]
[373349688,1752961838396,-10904.364631,0.00018872,2]
[373349689,1752961838454,-1144.44820268,0.00018872,2]
[373349690,1752961838526,-647.78342576,0.00018872,2]
[373349691,1752961838538,-4614.72538235,0.00018872,2]
[373349694,1752961838554,-1928.41141482,0.00018872,2]
[373349700,1752961838602,-4810.3118169,0.00018872,2]
[373349704,1752961838632,-41317.7486526,0.00018872,2]
[373349706,1752961838643,-699.08518006,0.00018877,2]
[373349708,1752961838652,-173.60522493,0.00018877,2]
[373349710,1752961838662,-699.08518006,0.00018888,2]
[373349712,1752961838671,-173.60522493,0.00018888,2]
[373349714,1752961838680,-401.35110537,0.00018891,2]
[373349716,1752961838689,-823.199,0.00018899,2]
[373349718,1752961838698,-5362.6425,0.00018899,2]
[373349720,1752961838708,-88888.0,0.00018899,2]
[373349722,1752961838718,-157.200894,0.00018899,2]
[373349724,1752961838727,-156.35301779,0.00018899,2]
[373349726,1752961838736,-173.60522493,0.00018899,2]
[373349728,1752961838746,-153.73003751,0.00018899,2]
[373349730,1752961838755,-699.08518006,0.00018899,2]
[373349732,1752961838764,-190.18826902,0.00018899,3]
[373349734,1752961838773,-1374.0,0.00018899,2]
[373349736,1752961838782,-556.21153512,0.00018899,2]
[373349738,1752961838791,-156.35301778,0.000189,2]
[373349740,1752961838801,-237339.0,0.000189,2]
[373349742,1752961838810,-12500.0,0.000189,2]
[373349744,1752961838819,-160.08474609,0.000189,2]
[373349746,1752961838829,-160.08474609,0.000189,2]
[373349748,1752961838838,-716.04206558,0.0001891,2]
[373349750,1752961838847,-1230.39875158,0.00018914,2]
[373349752,1752961838856,-1465.41746439,0.00018917,2]
[373349754,1752961838866,-716.04206558,0.00018918,2]
[373349756,1752961838875,-94858.16285163,0.00018925,2]
[373349758,1752961838884,-312.36268102,0.00018926,2]
[373349760,1752961838893,-716.04206558,0.00018927,2]
[373349762,1752961838903,-312.36268102,0.0001893,2]
[373349764,1752961838912,-200.0,0.00018936,2]
[373349766,1752961838921,-200.0,0.00018942,2]
[373349768,1752961838930,-1465.41746439,0.00018946,2]
[373349770,1752961838939,-200.0,0.00018951,2]
[373349772,1752961838949,-200.0,0.00018954,2]
[373349774,1752961838958,-856.12593199,0.00018963,2]
[373349776,1752961838967,-856.12593199,0.00018963,2]
[373349778,1752961838976,-312.36268102,0.00018966,2]
[373349780,1752961838986,-401.35110537,0.00018968,2]
[373349781,1752961838995,-200.0,0.00018968,2]
[373349782,1752961839004,-94858.16285163,0.0001898,2]
[373349783,1752961839013,-1465.41746439,0.00018983,2]
[373349784,1752961839022,-1230.39875158,0.00018986,2]
[373349785,1752961839031,-1230.39875158,0.00018987,2]
[373349786,1752961839040,-500.0,0.00018988,2]
[373349787,1752961839049,-4064.0,0.00018988,2]
[373349788,1752961839058,-500.0,0.00018988,2]
[373349789,1752961839067,-150.0,0.00018988,2]
[373349790,1752961839076,-150.0,0.00018988,2]
[373349791,1752961839086,-500.0,0.00018988,2]
[373349792,1752961839095,-1604.0,0.00018988,2]
[373349793,1752961839105,-150.0,0.00018988,2]
[373349794,1752961839114,-150.0,0.00018988,2]
[373349795,1752961839124,-500.0,0.00018988,2]
[373349797,1752961839134,-150.0,0.00018988,2]
[373349800,1752961839143,-150.0,0.00018988,2]
[373349801,1752961839152,-150.0,0.00018988,2]
[373349803,1752961839162,-150.0,0.00018988,2]
[373349806,1752961839171,-500.0,0.00018988,2]
[373349808,1752961839180,-150.0,0.00018988,2]
[373349810,1752961839190,-500.0,0.00018988,2]
[373349812,1752961839199,-150.0,0.00018988,2]
[373349813,1752961839209,-150.0,0.00018988,2]
[373349815,1752961839218,-500.0,0.00018988,2]
[373349817,1752961839228,-150.0,0.00018988,2]
[373349819,1752961839237,-543.0,0.00018988,2]
[373349821,1752961839247,-194.7110876,0.00018989,2]
[373349823,1752961839256,-194.7110876,0.00018989,2]
[373349825,1752961839266,-401.35110537,0.00018998,2]
[373349827,1752961839276,-300.0,0.00018998,2]
[373349829,1752961839286,-300.0,0.00018998,2]
[373349831,1752961839295,-300.0,0.00018998,2]
[373349833,1752961839305,-185.51664856,0.00018998,2]
[373349835,1752961839315,-328.751577,0.00018998,2]
[373349838,1752961839324,-3049.96,0.00018998,2]
[373349840,1752961839334,-702.0,0.00018999,2]
[373349842,1752961839343,-19254.99189094,0.00018999,2]
[373349844,1752961839353,-556380.28882959,0.00018999,2]
[373349846,1752961839362,-2957949.69562114,0.00018999,2]
[373349848,1752961839375,-3175.7970138,0.00018999,2]
[373349851,1752961839391,-2010.1040605,0.00018999,2]
[373349950,1752961840303,-55050.64362913,0.00018999,2]
[373349986,1752961840638,-342.32,0.00018999,2]
[373350000,1752961840752,-17144.58402984,0.00018999,2]
[373350007,1752961840813,-3585.06120994,0.00018999,2]
[373350009,1752961840824,-8830.72316507,0.00018999,2]
[373350012,1752961840836,-587.9,0.00018999,2]
[373350251,1752961843164,-150.24907312,0.00018899,2]
[373350253,1752961843173,-10166.41864215,0.00018999,2]
[373350270,1752961843327,-2219.8906285,0.00018999,2]
[373350272,1752961843339,-2416.63751132,0.00018999,2]
[373350274,1752961843350,-2999.03040014,0.00018999,2]
[373350284,1752961843440,-475.1290021,0.00018999,2]
[373350571,1752961846225,-150.0,0.000175,2]
[373350573,1752961846235,-151.0,0.00017521,2]
[373350575,1752961846245,-150.0,0.0001878,2]
[373350576,1752961846254,-172.11014853,0.00018999,2]
[373350581,1752961846289,-354.39,0.00018999,2]
[373350587,1752961846345,-356.77687519,0.00018999,2]
[373350594,1752961846409,-7053.08,0.00018999,2]
[373350596,1752961846423,-3467.6,0.00018999,2]
[373350598,1752961846435,-421.21,0.00018999,2]
[373351921,1752961907163,5511.0,0.000146,5]
[373351922,1752961907407,5511.0,0.000143,3]
[373351923,1752961907644,46796.0,0.00014,2]
[373351926,1752962429007,513.0,0.00015145,2]
[373351931,1752962894767,413.77,0.00013699,2]
[373351943,1752963032382,-513.0,0.00016506,2]
[373351944,1752963032392,-250.0,0.00016551,2]
[373351945,1752963032400,-387.12,0.00016596,2]
[373351946,1752963032409,-300.0,0.00016797,2]
[373351947,1752963032418,-153.51,0.00016853,2]
[373351948,1752963032428,-153.51,0.00016874,2]
[373351949,1752963032444,-153.51,0.00016895,2]
[373351950,1752963032454,-153.51,0.00016916,2]
[373351951,1752963032463,-153.51,0.00016937,2]
[373351952,1752963032472,-153.51,0.00016958,2]
[373351953,1752963032481,-153.51,0.00016979,2]
[373351954,1752963032491,-153.51,0.00017,2]
[373351955,1752963032500,-153.51,0.00017022,2]
[373351956,1752963032510,-150.0,0.00017088,2]
[373351957,1752963032519,-150.0,0.00017088,2]
[373351958,1752963032529,-150.0,0.00017088,2]
[373351959,1752963032539,-1632.55,0.00017385,2]
[373351960,1752963032549,-166.63,0.0001739,2]
[373351961,1752963032559,-295.82,0.0001741,2]
[373351962,1752963032568,-286.36,0.00017417,2]
[373351963,1752963032577,-300.0,0.00017431,2]
[373351964,1752963032587,-1200.0,0.00017431,2]
[373351965,1752963032597,-218.0,0.00017432,2]
[373351966,1752963032606,-500.0,0.00017433,2]
[373351967,1752963032615,-500.0,0.00017433,2]
[373351968,1752963032625,-500.0,0.00017433,2]
[373351969,1752963032634,-500.0,0.00017433,2]
[373351970,1752963032644,-313.27242011,0.00017433,2]
[373351971,1752963032653,-151.0,0.00017433,2]
[373351972,1752963032662,-151.0,0.00017433,2]
[373351973,1752963032672,-151.0,0.00017433,2]
[373351974,1752963032684,-151.0,0.00017433,2]
[373351975,1752963032693,-151.0,0.00017433,2]
[373351976,1752963032702,-151.0,0.00017433,2]
[373351977,1752963032712,-151.0,0.00017433,2]
[373351978,1752963032721,-151.0,0.00017433,2]
[373351979,1752963032731,-151.0,0.00017433,2]
[373351980,1752963032740,-151.0,0.00017433,2]
[373351981,1752963032750,-151.0,0.00017433,2]
[373351982,1752963032760,-151.0,0.00017433,2]
[373351983,1752963032771,-3293.02050547,0.00017433,2]
[373351984,1752963032793,-3770.22963439,0.00017433,2]
[373351985,1752963032803,-2551.25620281,0.00017433,2]
[373351986,1752963032814,-145982.39,0.00017443,2]
[373351987,1752963032823,-162.0,0.000175,2]
[373351988,1752963032832,-666.0,0.00017627,2]
[373351989,1752963032843,-785.79,0.00017646,2]
[373351990,1752963032853,-1000.0,0.00017729,2]
[373351991,1752963032863,-23900.0,0.00017805,2]
[373351992,1752963032872,-181.4,0.00017938,2]
[373351993,1752963032882,-806.0,0.00017968,2]
[373351994,1752963032891,-806.0,0.00017971,2]
[373351995,1752963032901,-212.5,0.00018002,2]
[373351996,1752963032911,-806.0,0.00018056,2]
[373351997,1752963032922,-207.4,0.00018076,2]
[373351998,1752963032932,-600.0,0.00018076,2]
[373351999,1752963032942,-151.0,0.00018076,2]
[373352000,1752963032951,-151.0,0.00018076,2]
[373352001,1752963032961,-161.60185894,0.00018076,2]
[373352002,1752963032970,-656.35,0.00018141,2]
[373352003,1752963032981,-300.0,0.00018157,2]
[373352004,1752963032990,-806.0,0.00018184,2]
[373352005,1752963033000,-806.0,0.00018187,2]
[373352006,1752963033010,-184.56,0.00018221,2]
[373352008,1752963033019,-806.0,0.00018237,2]
[373352010,1752963033029,-806.0,0.00018276,2]
[373352011,1752963033038,-7373.77,0.00018281,2]
[373352012,1752963033047,-806.0,0.00018327,2]
[373352013,1752963033057,-273.99,0.00018329,2]
[373352014,1752963033065,-806.0,0.00018331,2]
[373352015,1752963033073,-500.0,0.00018335,2]
[373352016,1752963033082,-4505.0,0.00018335,2]
[373352017,1752963033091,-500.0,0.00018335,2]
[373352018,1752963033101,-150.0,0.00018335,2]
[373352019,1752963033110,-500.0,0.00018335,2]
[373352020,1752963033120,-2139.0,0.00018335,2]
[373352021,1752963033129,-150.0,0.00018335,2]
[373352022,1752963033139,-500.0,0.00018335,2]
[373352023,1752963033148,-150.0,0.00018335,2]
[373352024,1752963033157,-150.0,0.00018335,2]
[373352025,1752963033167,-150.0,0.00018335,2]
[373352026,1752963033176,-500.0,0.00018335,2]
[373352027,1752963033186,-150.0,0.00018335,2]
[373352028,1752963033196,-500.0,0.00018335,2]
[373352029,1752963033205,-150.0,0.00018335,2]
[373352030,1752963033215,-150.0,0.00018335,2]
[373352031,1752963033224,-500.0,0.00018335,2]
[373352032,1752963033233,-150.0,0.00018335,2]
[373352033,1752963033243,-771.0,0.00018335,2]
[373352034,1752963033252,-500.0,0.00018335,2]
[373352035,1752963033261,-500.0,0.00018335,2]
[373352036,1752963033271,-1420.0,0.00018335,2]
[373352037,1752963033280,-806.0,0.00018335,2]
[373352038,1752963033289,-806.0,0.00018356,2]
[373352039,1752963033299,-9344.19,0.00018356,2]
[373352040,1752963033308,-806.0,0.00018357,2]
[373352041,1752963033317,-175.0,0.00018357,2]
[373352042,1752963033327,-1473.86489298,0.00018363,2]
[373352043,1752963033336,-806.0,0.00018429,2]
[373352044,1752963033346,-806.0,0.00018491,2]
[373352045,1752963033355,-1473.86489298,0.00018497,2]
[373352046,1752963033364,-500.0,0.00018609,2]
[373352047,1752963033374,-4505.0,0.00018609,2]
[373352048,1752963033383,-500.0,0.00018609,2]
[373352049,1752963033393,-150.0,0.00018609,2]
[373352050,1752963033402,-500.0,0.00018609,2]
[373352051,1752963033411,-2139.0,0.00018609,2]
[373352052,1752963033421,-150.0,0.00018609,2]
[373352053,1752963033432,-500.0,0.00018609,2]
[373352054,1752963033441,-150.0,0.00018609,2]
[373352055,1752963033450,-150.0,0.00018609,2]
[373352056,1752963033460,-150.0,0.00018609,2]
[373352057,1752963033470,-500.0,0.00018609,2]
[373352058,1752963033480,-500.0,0.00018609,2]
[373352059,1752963033490,-150.0,0.00018609,2]
[373352060,1752963033499,-500.0,0.00018609,2]
[373352061,1752963033509,-771.0,0.00018609,2]
[373352062,1752963033518,-500.0,0.00018609,2]
[373352063,1752963033528,-500.0,0.00018609,2]
[373352064,1752963033537,-1420.0,0.00018609,2]
[373352065,1752963033547,-420.377823,0.00018619,2]
[373352066,1752963033556,-600.0,0.00018624,2]
[373352067,1752963033566,-908.9,0.0001863,2]
[373352068,1752963033575,-1473.86489298,0.00018631,2]
[373352069,1752963033585,-150.0,0.00018726,2]
[373352070,1752963033595,-689.99279095,0.00018738,2]
[373352071,1752963033606,-1473.86489298,0.00018765,2]
[373352072,1752963033616,-159.0,0.0001878,2]
[373352073,1752963033627,-156.10190356,0.00018799,2]
[373352074,1752963033637,-3053.6029373,0.00018799,2]
[373352075,1752963033646,-7054.3813,0.000188,2]
[373352076,1752963033656,-175.0,0.000188,2]
[373352077,1752963033666,-3053.60293726,0.0001881,2]
[373352078,1752963033675,-3053.60293726,0.00018821,2]
[373352079,1752963033688,-3053.60293726,0.00018832,2]
[373352080,1752963033698,-3053.60293726,0.00018843,2]
[373352081,1752963033708,-200.0,0.00018847,2]
[373352082,1752963033717,-3053.60293726,0.00018855,2]
[373352083,1752963033726,-3053.60293726,0.00018866,2]
[373352084,1752963033735,-200.0,0.0001887,2]
[373352085,1752963033747,-31619.38761731,0.00018871,2]
[373352086,1752963033756,-299.40679365,0.00018873,2]
[373352087,1752963033766,-3053.60293726,0.00018877,2]
[373352088,1752963033779,-500.0,0.00018883,2]
[373352089,1752963033789,-4505.0,0.00018883,2]
[373352090,1752963033798,-500.0,0.00018883,2]
[373352091,1752963033808,-150.0,0.00018883,2]
[373352092,1752963033817,-500.0,0.00018883,2]
[373352093,1752963033826,-2139.0,0.00018883,2]
[373352094,1752963033835,-150.0,0.00018883,2]
[373352095,1752963033845,-500.0,0.00018883,2]
[373352096,1752963033855,-150.0,0.00018883,2]
[373352097,1752963033864,-150.0,0.00018883,2]
[373352098,1752963033874,-500.0,0.00018883,2]
[373352099,1752963033883,-500.0,0.00018883,2]
[373352100,1752963033893,-150.0,0.00018883,2]
[373352101,1752963033902,-500.0,0.00018883,2]
[373352102,1752963033911,-771.0,0.00018883,2]
[373352103,1752963033920,-500.0,0.00018883,2]
[373352104,1752963033929,-500.0,0.00018883,2]
[373352105,1752963033940,-1420.0,0.00018883,2]
[373352106,1752963033949,-11424.81290615,0.00018888,2]
[373352107,1752963033958,-3053.60293726,0.00018888,2]
[373352108,1752963033968,-200.0,0.0001889,2]
[373352109,1752963033977,-210.13291725,0.00018893,2]
[373352110,1752963033986,-39084.95318469,0.00018898,2]
[373352111,1752963033996,-500.0,0.00018898,2]
[373352112,1752963034005,-500.0,0.00018898,2]
[373352113,1752963034014,-157.07485635,0.00018898,2]
[373352114,1752963034023,-500.0,0.00018898,2]
[373352115,1752963034032,-418.74818128,0.00018898,2]
[373352116,1752963034042,-11424.81290615,0.00018898,2]
[373352117,1752963034051,-428.06296604,0.00018898,2]
[373352118,1752963034061,-60375.0,0.00018899,2]
[373352119,1752963034070,-580.52887944,0.00018899,2]
[373352120,1752963034083,-4419.47112056,0.00018899,2]
[373352121,1752963034093,-306.83818691,0.00018899,2]
[373352122,1752963034104,-526.11088193,0.00018899,2]
[373352123,1752963034123,-701.64160126,0.00018899,2]
[373352124,1752963034134,-38288.24004239,0.00018899,2]
[373352125,1752963034146,-49065.16928751,0.00018899,2]
[373352126,1752963034156,-5362.6425,0.00018899,2]
[373352127,1752963034166,-290.35355527,0.00018899,2]
[373352128,1752963034176,-1473.86489298,0.00018899,2]
[373352129,1752963034188,-153.96755628,0.00018899,2]
[373352130,1752963034197,-150.2490731,0.00018899,2]
[373352131,1752963034207,-3053.60293726,0.00018899,2]
[373352132,1752963034216,-190.18826902,0.00018899,3]
[373352133,1752963034226,-11430.9788495,0.000189,2]
[373352134,1752963034236,-158.33226894,0.000189,2]
[373352135,1752963034247,-158.33226892,0.000189,2]
[373352136,1752963034256,-158.33226892,0.000189,2]
[373352137,1752963034265,-158.33226892,0.000189,2]
[373352138,1752963034274,-228.06296599,0.00018901,2]
[373352139,1752963034283,-200.0,0.00018903,2]
[373352140,1752963034292,-210.13291725,0.0001891,2]
[373352141,1752963034302,-807.0,0.00018915,2]
[373352142,1752963034311,-1268.0,0.00018915,2]
[373352143,1752963034320,-1103.0,0.00018915,2]
[373352144,1752963034330,-2016.0,0.00018915,2]
[373352145,1752963034339,-562.0,0.00018915,2]
[373352146,1752963034349,-595.0,0.00018915,2]
[373352147,1752963034358,-1287.0,0.00018915,2]
[373352148,1752963034368,-1686.0,0.00018915,2]
[373352149,1752963034378,-21355.0,0.00018915,2]
[373352150,1752963034387,-6048.0,0.00018915,2]
[373352151,1752963034396,-862.0,0.00018915,2]
[373352152,1752963034406,-23999.45017822,0.00018916,2]
[373352153,1752963035137,-731.03756705,0.00018916,2]
[373352154,1752963035210,-1239.09362732,0.00018916,2]
[373352155,1752963035239,-931.34796166,0.00018916,2]
[373352156,1752963035251,-4718.45828306,0.00018916,2]
[373352157,1752963035260,-156.10190355,0.00018916,2]
[373352158,1752963035270,-200.0,0.00018919,2]
[373352159,1752963035279,-513.0,0.00018923,5]
[373352160,1752963035288,-210.13291725,0.00018929,2]
[373352161,1752963035298,-200.0,0.00018935,2]
[373352162,1752963035307,-299.40679365,0.00018936,2]
[373352163,1752963035316,-279.02934769,0.00018936,2]
[373352164,1752963035325,-228.06296599,0.00018938,2]
[373352165,1752963035335,-200.0,0.00018938,2]
[373352166,1752963035344,-200.0,0.00018939,2]
[373352167,1752963035353,-200.0,0.0001894,2]
[373352168,1752963035363,-200.0,0.00018943,2]
[373352169,1752963035372,-11424.81290615,0.00018947,2]
[373352170,1752963035381,-299.40679365,0.00018955,2]
[373352171,1752963035391,-5029.73108904,0.00018957,2]
[373352172,1752963035412,-17571.73822428,0.00018957,2]
[373352173,1752963035423,-6638.82137793,0.00018957,2]
[373352183,1752963038557,-533.20217189,0.00018915,2]
[373352184,1752963038570,-3108.35561143,0.00018915,2]
[373352185,1752963038613,-483.44221668,0.00018915,2]
[373352186,1752963038623,-1923.55778332,0.00018957,2]
[373352187,1752963038671,-7921.10471012,0.00018957,2]
[373352188,1752963038681,-1530.091,0.00018962,2]
[373352189,1752963038693,-2538.53176595,0.00018962,2]
[373352190,1752963038702,-164.068,0.00018962,2]
[373352191,1752963038711,-389.20880034,0.00018965,2]
[373352192,1752963038721,-389.20880034,0.00018972,2]
[373352193,1752963038731,-279.02934769,0.00018972,2]
[373352194,1752963038740,-410.1329173,0.00018972,2]
[373352195,1752963038750,-500.0,0.00018973,2]
[373352196,1752963038759,-171.76257112,0.00018973,2]
[373352197,1752963038771,-500.0,0.00018973,2]
[373352198,1752963038780,-501.46488387,0.00018973,2]
[373352199,1752963038790,-500.0,0.00018973,2]
[373352200,1752963038800,-500.0,0.00018973,2]
[373352201,1752963038809,-501.45890469,0.00018973,2]
[373352202,1752963038819,-513.05691528,0.00018973,2]
[373352203,1752963038828,-500.0,0.00018973,2]
[373352204,1752963038837,-167.67298565,0.00018973,2]
[373352205,1752963038850,-500.0,0.00018973,2]
[373352206,1752963038860,-500.0,0.00018973,2]
[373352207,1752963038869,-500.0,0.00018973,2]
[373352208,1752963038878,-428.06296604,0.00018973,2]
[373352209,1752963038888,-39084.95318469,0.00018976,2]
[373352210,1752963038897,-389.20880034,0.00018977,2]
[373352211,1752963038906,-200.0,0.00018983,2]
[373352213,1752963038916,-410.1329173,0.00018988,2]
[373352215,1752963038925,-150.0,0.00018988,2]
[373352217,1752963038936,-500.0,0.00018988,2]
[373352219,1752963038945,-150.0,0.00018988,2]
[373352221,1752963038954,-500.0,0.00018988,2]
[373352223,1752963038963,-500.0,0.00018988,2]
[373352224,1752963038973,-500.0,0.00018988,2]
[373352226,1752963038982,-150.0,0.00018988,2]
[373352228,1752963038991,-150.0,0.00018988,2]
[373352230,1752963039000,-498.0,0.00018988,2]
[373352232,1752963039009,-500.0,0.00018988,2]
[373352234,1752963039019,-150.0,0.00018988,2]
[373352236,1752963039028,-500.0,0.00018988,2]
[373352238,1752963039037,-500.0,0.00018988,2]
[373352240,1752963039047,-150.0,0.00018988,2]
[373352242,1752963039056,-150.0,0.00018988,2]
[373352244,1752963039066,-194.7110876,0.00018989,2]
[373352246,1752963039075,-194.7110876,0.00018989,2]
[373352248,1752963039084,-200.0,0.00018989,2]
[373352250,1752963039094,-3124.511663,0.00018989,2]
[373352252,1752963039103,-101471.0696682,0.00018989,2]
[373352254,1752963039113,-279.02934769,0.00018991,2]
[373352256,1752963039122,-31619.38761731,0.00018993,2]
[373352258,1752963039131,-428.06296604,0.00018995,2]
[373352260,1752963039141,-410.1329173,0.00018995,2]
[373352262,1752963039150,-228.06296599,0.00018997,2]
[373352264,1752963039159,-300.0,0.00018998,2]
[373352267,1752963039168,-300.0,0.00018998,2]
[373352269,1752963039177,-300.0,0.00018998,2]
[373352270,1752963039189,-300.0,0.00018998,2]
[373352273,1752963039198,-300.0,0.00018998,2]
[373352274,1752963039208,-1581.16426477,0.00018998,2]
[373352277,1752963039217,-3317.63,0.00018998,2]
[373352279,1752963039227,-691.0,0.00018998,2]
[373352281,1752963039237,-724761.09568082,0.00018999,2]
[373352283,1752963039247,-22159.82155039,0.00018999,2]
[373352285,1752963039257,-3340718.39214543,0.00018999,2]
[373352287,1752963039269,-2272.22276206,0.00018999,2]
[373352289,1752963039280,-864.45084556,0.00018999,2]
[373352295,1752963039324,-385.36424049,0.00018999,2]
[373352297,1752963039337,-865.69,0.00018999,2]
[373352299,1752963039348,-355.9999997,0.00018999,2]
[373352308,1752963039420,-2057.08017204,0.00018999,2]
[373352310,1752963039431,-8891.6452061,0.00018999,2]
[373352312,1752963039446,-1330.55565,0.00018999,2]
[373352315,1752963039459,-837.40192961,0.00018999,2]
[373352421,1752963041070,-112902.51201942,0.00018999,2]
[373352422,1752963041081,-942155.88964101,0.00018999,2]
[373352423,1752963041092,-3868.250001,0.00018999,2]
[373352424,1752963041124,-304.73349291,0.00018999,2]
[373352640,1752963043474,-10967.74080124,0.00018999,2]
[373352642,1752963043485,-600.0,0.00018999,2]
[373352654,1752963043585,-870.44412021,0.00018915,2]
[373352659,1752963043699,-18.55587979,0.00018915,2]
[373352660,1752963043708,-10644.93812021,0.00018999,2]
[373352661,1752963043719,-2532.95,0.00018999,2]
[373352936,1752963046588,-522.0,0.00018999,2]
[373352938,1752963046597,-79.7011,0.00018999,2]
[373352960,1752963046813,-7219.45901814,0.00018999,2]
[373352967,1752963046874,-522667.8280246,0.00018999,2]
[373352969,1752963046887,-144217.70681114,0.00018999,2]
[373352981,1752963046989,-1141.6,0.00018999,2]
[373352984,1752963047001,-10505.91831624,0.00018999,2]
[373353384,1752963411088,315.15645857,0.000211,28]
[373353432,1752964191494,406.97,0.00013699,2]
[373353439,1752964231623,-158.69692534,0.00017088,2]
[373353440,1752964231632,-150.0,0.00017088,2]
[373353441,1752964231641,-513.0,0.00017339,2]
[373353442,1752964231650,-254.0,0.000175,2]
[373353443,1752964231660,-193.56,0.000178,2]
[373353444,1752964231669,-150.0,0.00017869,2]
[373353445,1752964231679,-170.55,0.00017888,2]
[373353446,1752964231688,-223.17633604,0.00017982,2]
[373353447,1752964231719,-766.49366396,0.00017982,2]
[373353448,1752964231729,-1000.0,0.00017991,2]
[373353449,1752964231739,-600.0,0.00017999,2]
[373353450,1752964231748,-1200.0,0.00017999,2]
[373353451,1752964231757,-3764.01855369,0.00018,2]
[373353452,1752964231769,-14126.71704629,0.00018,2]
[373353453,1752964231778,-3766.1829537,0.00018,2]
[373353487,1752964237763,-20124.42495726,0.00018,2]
[373353488,1752964237772,-5586.8665332,0.00018,2]
[373353489,1752964237781,-200.0,0.00018,2]
[373353490,1752964237791,-200.0,0.00018072,2]
[373353491,1752964237800,-207.4,0.00018076,2]
[373353492,1752964237810,-619.19,0.00018329,2]
[373353493,1752964237819,-168.0,0.00018496,2]
[373353494,1752964237828,-168.0,0.00018611,2]
[373353495,1752964237837,-600.0,0.00018619,2]
[373353496,1752964237846,-350.314852,0.00018619,2]
[373353497,1752964237856,-96009.78,0.0001863,2]
[373353498,1752964237866,-168.0,0.0001864,2]
[373353499,1752964237875,-168.0,0.00018687,2]
[373353500,1752964237884,-603.69183761,0.00018699,2]
[373353501,1752964237894,-467.37825676,0.00018764,2]
[373353502,1752964237904,-249.0,0.0001878,2]
[373353503,1752964237913,-250.0,0.00018796,2]
[373353504,1752964237922,-1559.10685246,0.00018804,2]
[373353505,1752964237933,-170.37060145,0.00018804,2]
[373353506,1752964237943,-1559.10685237,0.00018815,2]
[373353507,1752964237952,-1559.10685237,0.00018825,2]
[373353508,1752964237964,-1559.10685237,0.00018836,2]
[373353509,1752964237973,-1559.10685237,0.00018846,2]
[373353510,1752964237982,-200.0,0.00018847,2]
[373353511,1752964237995,-1559.10685237,0.00018857,2]
[373353512,1752964238004,-1559.10685237,0.00018867,2]
[373353513,1752964238014,-1559.10685237,0.00018878,2]
[373353514,1752964238024,-874.43121618,0.00018878,2]
[373353515,1752964238033,-200.0,0.0001888,2]
[373353516,1752964238042,-216.92134962,0.00018882,2]
[373353518,1752964238052,-200.0,0.00018885,2]
[373353520,1752964238061,-1559.10685237,0.00018888,2]
[373353522,1752964238070,-510.56738104,0.00018889,2]
[373353524,1752964238080,-168.0,0.00018889,2]
[373353526,1752964238089,-1416.91312694,0.0001889,2]
[373353528,1752964238098,-158.47376958,0.0001889,2]
[373353530,1752964238107,-1416.91312689,0.00018891,2]
[373353532,1752964238117,-200.0,0.00018891,2]
[373353534,1752964238126,-1416.91312689,0.00018892,2]
[373353536,1752964238135,-200.0,0.00018893,2]
[373353538,1752964238144,-1416.91312689,0.00018893,2]
[373353540,1752964238153,-1416.91312689,0.00018894,2]
[373353542,1752964238163,-1416.91312689,0.00018895,2]
[373353544,1752964238172,-1416.91312689,0.00018896,2]
[373353546,1752964238181,-1416.91312689,0.00018897,2]